bitfinex/quotes_ETHUSD_20241003
["timestamp","ask_amount","ask_price","bid_price","bid_amount"]
[1727944946550,10.17960691,2351.1,2350.4,3.4768985]
[1727944946551,4.2537,2350.9,2350.4,3.4768985]
[1727944946755,10.17960691,2351.1,2350.7,4.25396]
[1727944946756,0.9068,2351.1,2350.7,4.25396]
[1727944946955,12.40946691,2351.4,2350.9,4.25368]
[1727944947154,7.39,2351.4,2350.9,4.25359]
[1727944947404,0.9022,2351.5,2350.9,5.104332]
[1727944947553,0.9022,2351.5,2351.0,4.25335]
[1727944948298,4.25281,2351.4,2350.8,8.50744]
[1727944948505,4.25313,2351.3,2350.8,4.25369]
[1727944948956,4.25313,2351.3,2350.8,8.50747]
[1727944949357,9.27227691,2351.4,2350.9,4.25368]
[1727944949573,9.27227691,2351.4,2351.0,4.25346]
[1727944949783,13.52521691,2351.4,2350.9,4.25368]
[1727944949979,5.01946691,2351.4,2351.0,4.2535]
[1727944950400,9.27234691,2351.4,2350.9,4.25367]
[1727944950889,13.52530691,2351.4,2350.9,4.25367]
[1727944951087,9.27234691,2351.4,2351.0,4.25349]
[1727944951512,9.27234691,2351.4,2350.8,5.16090159]
[1727944951716,9.27226691,2351.4,2350.9,4.25366]
[1727944951918,13.52518691,2351.4,2350.9,4.25366]
[1727944952083,9.27226691,2351.4,2350.9,4.25366]
[1727944952422,5.01946691,2351.4,2351.1,4.25329]
[1727944952598,0.9022,2351.5,2351.1,4.25329]
[1727944952599,5.01946691,2351.7,2351.3,4.25287]
[1727944952792,5.11637,2351.8,2351.3,4.25287]
[1727944952996,5.11637,2351.8,2351.3,8.50573]
[1727944953193,5.11637,2351.8,2351.3,4.25286]
[1727944953394,0.8642,2351.8,2351.3,4.25286]
[1727944953695,0.8642,2351.8,2351.4,4.25269]
[1727944954083,4.25116,2352.3,2351.3,0.517926]
[1727944954084,0.842,2352.1,2351.3,0.517926]
[1727944954321,0.842,2352.1,2351.6,4.2524]
[1727944954322,5.09361,2352.1,2351.6,4.2524]
[1727944954526,5.09361,2352.1,2351.7,4.25223]
[1727944954818,5.09361,2352.1,2351.6,4.2524]
[1727944955795,4.25178,2352.0,2351.5,4.25242]
[1727944955986,5.09356,2352.1,2351.7,4.25222]
[1727944956185,4.25178,2352.0,2351.5,4.25242]
[1727944956587,4.25189,2351.9,2351.5,4.25242]
[1727944957221,4.2518,2352.0,2351.5,5.402943]
[1727944957427,8.50367,2352.0,2351.5,5.402943]
[1727944957692,0.55,2351.9,2351.2,4.25306]
[1727944957815,4.25232,2351.7,2351.2,4.253]
[1727944958015,5.10208,2351.8,2351.4,4.25277]
[1727944958952,4.25232,2351.7,2351.2,0.4253]
[1727944959138,4.25232,2351.7,2351.2,4.25299]
[1727944959314,4.25232,2351.7,2351.2,8.50598]
[1727944959514,5.10208,2351.8,2351.3,4.25286]
[1727944959710,4.25235,2351.7,2351.2,4.25299]
[1727944959917,5.15479,2352.1,2351.5,4.25256]
[1727944960155,4.25173,2352.0,2351.5,4.25256]
[1727944960367,4.25191,2351.9,2351.5,4.25256]
[1727944960568,4.25191,2351.9,2351.5,5.189229]
[1727944960732,0.9032,2352.1,2351.5,0.936669]
[1727944960927,4.25163,2352.1,2351.7,4.25218]
[1727944961268,8.50283,2352.2,2351.7,4.25213]
[1727944961468,8.50283,2352.2,2351.6,4.25239]
[1727944961469,4.25135,2352.2,2351.8,4.25205]
[1727944961669,0.9032,2352.4,2351.8,0.850444]
[1727944961968,0.9032,2352.4,2351.6,3.0]
[1727944961969,4.25106,2352.4,2351.9,5.10699]
[1727944962262,4.25097,2352.5,2351.9,5.10699]
[1727944962263,4.25116,2352.3,2351.9,5.10699]
[1727944962444,0.9113,2352.7,2351.4,7.25276]
[1727944962445,4.25207,2351.8,2351.4,7.25276]
[1727944962622,5.0928,2351.9,2351.4,4.25262]
[1727944962818,4.25059,2352.7,2351.4,0.937821]
[1727944963018,4.25059,2352.7,2351.2,0.8727]
[1727944963019,4.25216,2351.8,2351.3,4.25295]
[1727944963273,4.25216,2351.8,2350.8,0.90719159]
[1727944963274,1.4389,2351.8,2351.0,4.25347]
[1727944963434,4.80288,2351.4,2350.9,4.25356]
[1727944963816,0.55,2351.4,2350.9,4.25368]
[1727944964019,4.80287,2351.4,2350.9,4.25368]
[1727944964266,4.80287,2351.4,2350.8,5.16098159]
[1727944964267,4.80278,2351.4,2350.8,5.16093159]
[1727944964561,4.80278,2351.4,2350.9,4.25353]
[1727944964728,5.16919,2351.2,2350.7,4.25394]
[1727944964928,0.916,2351.2,2350.8,4.25377]
[1727944965157,0.916,2351.2,2350.9,8.50728]
[1727944965358,0.916,2351.2,2350.9,4.2536]
[1727944966259,0.916,2351.2,2350.8,0.937551]
[1727944966260,5.16914,2351.2,2350.8,4.25385]
[1727944966937,0.916,2351.2,2350.9,4.25367]
[1727944967262,0.916,2351.2,2350.8,4.25384]
[1727944967466,0.916,2351.2,2350.8,4.25377]
[1727944967625,5.16918,2351.2,2350.8,4.25377]
[1727944969455,4.25335,2351.1,2350.7,4.25402]
[1727944970434,4.25377,2350.9,2350.3,0.8911]
[1727944970732,4.25377,2350.9,2350.0,5.14629]
[1727944970733,4.25448,2350.5,2350.0,5.14629]
[1727944970934,0.8944,2350.4,2349.8,4.25552]
[1727944971179,4.25505,2350.2,2349.7,5.14689]
[1727944971378,4.25514,2350.1,2349.7,4.25579]
[1727944972127,4.25492,2350.3,2349.7,4.25579]
[1727944972453,4.25492,2350.3,2349.4,0.8607]
[1727944972454,4.2554,2350.0,2349.5,4.25607]
[1727944972984,4.25576,2349.8,2349.1,0.9065]
[1727944973133,4.25594,2349.7,2349.2,4.25669]
[1727944973484,9.79239291,2349.8,2349.4,4.25637]
[1727944973679,0.55,2349.8,2349.2,4.25669]
[1727944973983,0.55,2349.8,2349.0,4.25701]
[1727944973984,4.80633,2349.5,2349.0,4.25701]
[1727944974787,5.13172,2349.4,2349.0,4.25712]
[1727944975270,0.8752,2349.4,2349.0,4.25712]
[1727944975676,0.8752,2349.4,2349.0,8.51417]
[1727944975845,0.8752,2349.4,2348.6,5.15554]
[1727944975846,0.8752,2349.4,2348.9,4.2572]
[1727944976051,0.8752,2349.4,2349.2,4.25675]
[1727944976419,0.55,2349.6,2349.2,4.2567]
[1727944976685,0.55,2349.6,2349.3,4.25656]
[1727944977037,0.55,2349.6,2349.2,4.25675]
[1727944977238,4.80606,2349.6,2349.2,4.25675]
[1727944977477,4.25624,2349.5,2349.1,4.25694]
[1727944978098,4.80606,2349.6,2349.1,4.25694]
[1727944978250,9.06219,2349.6,2349.1,5.108331]
[1727944978588,4.80606,2349.6,2349.1,5.108331]
[1727944978769,9.06219,2349.6,2349.1,4.25686]
[1727944979177,4.2563,2349.5,2348.9,4.25717]
[1727944979384,0.55,2349.6,2348.7,4.25754]
[1727944979385,4.25677,2349.2,2348.8,7.25745]
[1727944979551,0.55,2349.3,2349.0,4.2571]
[1727944979900,4.25627,2349.5,2349.1,4.25685]
[1727944980051,4.2561,2349.6,2349.2,4.25676]
[1727944980254,0.8987,2349.7,2349.3,4.25656]
[1727944980462,0.8987,2349.7,2349.2,5.150717]
[1727944980463,4.25615,2349.6,2349.2,4.25676]
[1727944980689,4.25615,2349.6,2348.8,8.19740154]
[1727944980690,4.25668,2349.3,2348.8,8.19740154]
[1727944980898,0.55,2349.3,2348.9,4.25714]
[1727944981288,4.25622,2349.5,2349.0,4.25695]
[1727944981590,4.25643,2349.4,2349.0,1.24543715]
[1727944981796,4.25643,2349.4,2348.9,4.2573]
[1727944982153,0.55,2349.4,2349.0,4.25711]
[1727944982353,5.15466,2349.7,2348.8,3.94006154]
[1727944982354,5.15463,2349.7,2349.2,4.25665]
[1727944982587,5.15463,2349.7,2349.3,4.25649]
[1727944982890,0.8987,2349.7,2349.3,4.25649]
[1727944983103,0.8987,2349.7,2349.4,4.25628]
[1727944983402,0.8987,2349.7,2349.4,5.107557]
[1727944983604,0.8987,2349.7,2349.4,0.851277]
[1727944983765,0.8987,2349.7,2349.4,5.107637]
[1727944983968,5.18454,2350.0,2349.6,4.25596]
[1727944984167,4.25569,2349.8,2349.4,0.851277]
[1727944984488,4.25604,2349.6,2349.2,4.25671]
[1727944984684,4.25589,2349.7,2349.2,4.25671]
[1727944984991,4.25575,2349.8,2349.2,4.25671]
[1727944984992,4.25604,2349.6,2349.2,4.25671]
[1727944985195,4.25604,2349.6,2349.2,5.496162]
[1727944985367,4.25604,2349.6,2349.2,5.496082]
[1727944986056,4.25634,2349.5,2349.2,1.239452]
[1727944986256,5.15436,2349.4,2348.9,5.57949615]
[1727944986456,0.8979,2349.4,2349.0,4.25702]
[1727944986691,5.15434,2349.4,2349.0,4.25702]
[1727944986860,5.15434,2349.4,2348.9,4.65119615]
[1727944987259,4.25662,2349.3,2348.9,4.65119615]
[1727944987460,5.15433,2349.4,2348.9,8.90834615]
[1727944987675,4.25677,2349.2,2348.8,3.0]
[1727944987978,0.55,2349.3,2348.7,3.0]
[1727944987979,4.25715,2349.0,2348.7,3.0]
[1727944988178,4.25715,2349.0,2348.6,4.25785]
[1727944988378,4.25697,2349.1,2348.7,4.25765]
[1727944988703,5.56946691,2349.3,2348.6,4.25783]
[1727944988855,4.25696,2349.1,2348.7,4.25764]
[1727944989405,0.64673669,2349.2,2348.4,4.2581]
[1727944989406,4.25757,2348.8,2348.4,4.2581]
[1727944989701,0.9275,2348.9,2348.2,5.18746]
[1727944989702,4.25776,2348.7,2348.2,5.18746]
[1727944989869,4.25793,2348.6,2348.2,4.25846]
[1727944990061,4.25806,2348.5,2348.1,4.25874]
[1727944990255,4.25829,2348.4,2348.0,4.25881]
[1727944990496,5.10249,2348.4,2348.0,4.25881]
[1727944990661,5.10249,2348.4,2347.9,0.8486]
[1727944990662,0.8442,2348.4,2348.1,4.25871]
[1727944990859,5.01946691,2349.0,2348.4,4.25821]
[1727944991077,5.10481,2348.9,2348.5,4.25803]
[1727944991261,0.8474,2348.9,2348.5,4.25803]
[1727944991508,5.30434436,2349.1,2348.6,4.25773]
[1727944991843,6.15164436,2349.1,2348.6,4.25778]
[1727944992003,6.15164436,2349.1,2348.6,8.51554]
[1727944992323,5.10435,2349.1,2348.7,4.25764]
[1727944992634,5.10435,2349.1,2348.6,4.25783]
[1727944992833,5.10435,2349.1,2348.4,0.9164]
[1727944992834,5.10435,2349.1,2348.7,4.25767]
[1727944993137,4.2574,2348.9,2348.4,5.17448]
[1727944993338,4.2574,2348.9,2348.3,3.0]
[1727944993501,0.55,2348.9,2348.3,3.0]
[1727944993696,4.2578,2348.7,2348.3,7.25837]
[1727944994333,4.80731,2348.9,2348.4,4.25812]
[1727944994529,0.55,2348.9,2348.5,4.25799]
[1727944995299,4.80743,2348.9,2348.5,4.25799]
[1727944995710,4.80743,2348.9,2348.5,4.25793]
[1727944995711,0.55,2348.9,2348.5,4.25793]
[1727944995942,5.10426,2349.1,2348.7,4.25766]
[1727944996149,5.10426,2349.1,2348.5,0.81233401]
[1727944996150,4.25748,2348.9,2348.5,0.81233401]
[1727944996441,4.25748,2348.9,2348.5,4.25792]
[1727944996669,0.55,2349.0,2348.6,4.2577]
[1727944996871,9.36134,2349.1,2348.6,4.2577]
[1727944997030,5.10427,2349.1,2348.5,4.25794]
[1727944997234,5.10427,2349.1,2348.4,4.25806]
[1727944997235,4.25738,2348.9,2348.4,4.2581]
[1727944997434,4.25738,2348.9,2348.2,3.0]
[1727944997435,8.51484,2348.9,2348.5,4.258]
[1727944997632,8.51484,2348.9,2348.1,4.395731]
[1727944997633,4.25738,2348.9,2348.1,4.395731]
[1727944997835,4.25758,2348.8,2348.3,8.5165]
[1727944998131,4.25758,2348.8,2348.4,4.25821]
[1727944998658,4.25758,2348.8,2348.0,4.25882]
[1727944998659,5.10227,2348.6,2348.0,4.25882]
[1727944998976,4.80805,2348.5,2348.1,4.25875]
[1727945000185,9.06624,2348.5,2348.1,4.25875]
[1727945000363,4.2583,2348.4,2347.8,0.8803]
[1727945000566,4.25806,2348.5,2348.0,4.25892]
[1727945000769,4.25806,2348.5,2348.1,4.25875]
[1727945001070,4.25823,2348.4,2348.0,4.25884]
[1727945001459,4.25823,2348.4,2348.0,8.51766]
[1727945001639,4.25823,2348.4,2348.0,8.51674737]
[1727945001983,4.25806,2348.5,2348.0,4.25792737]
[1727945002290,4.25806,2348.5,2347.8,1.26833]
[1727945002291,4.2585,2348.3,2347.8,4.2592]
[1727945002463,5.110156,2348.3,2347.8,4.2592]
[1727945002634,4.25868,2348.2,2347.8,4.2592]
[1727945005161,4.25868,2348.2,2347.8,8.51842]
[1727945005470,4.25871,2348.2,2347.8,4.2592]
[1727945005782,4.25956,2347.7,2347.3,4.26005]
[1727945005953,4.25969,2347.6,2347.2,4.26036]
[1727945006168,4.25969,2347.6,2347.1,5.0952]
[1727945006169,5.11758,2347.6,2347.1,5.0952]
[1727945006469,5.11758,2347.6,2346.2,7.51956691]
[1727945006470,4.26067,2347.1,2346.6,4.26137]
[1727945006675,0.8579,2347.1,2346.6,4.26137]
[1727945006853,0.8579,2347.1,2346.8,4.26111]
[1727945007239,0.8579,2347.1,2346.5,0.8347]
[1727945007240,1.369747,2347.1,2346.5,0.8347]
[1727945007462,1.369747,2347.1,2346.5,5.09628]
[1727945007463,4.26083,2347.0,2346.5,5.09628]
[1727945007669,5.630397,2347.1,2346.6,4.26139]
[1727945008258,4.26076,2347.0,2346.6,4.26139]
[1727945008781,1.369747,2347.1,2346.7,4.26128]
[1727945008782,5.630347,2347.1,2346.7,4.26128]
[1727945008939,0.8424,2347.3,2347.1,4.26046]
[1727945009138,3.0,2348.0,2347.5,4.25976]
[1727945009139,0.8424,2347.9,2347.5,4.25976]
[1727945009973,5.10153,2347.9,2347.5,4.25976]
[1727945010380,5.10153,2347.9,2347.3,4.26009]
[1727945010381,5.10153,2347.9,2347.4,4.26]
[1727945010751,5.10153,2347.9,2347.5,4.25981]
[1727945011489,5.10153,2347.9,2347.5,4.25983]
[1727945012641,4.25933,2347.8,2347.3,4.26006]
[1727945012846,4.25933,2347.8,2347.4,4.26]
[1727945014999,4.25933,2347.8,2347.0,4.26059]
[1727945015000,4.25985,2347.5,2347.0,4.26059]
[1727945015159,4.25985,2347.5,2346.9,4.26091]
[1727945015160,5.13163,2347.4,2346.9,4.26091]
[1727945015360,0.8715,2347.4,2346.9,4.26091]
[1727945015675,5.13155,2347.4,2346.9,4.26082]
[1727945015878,5.13155,2347.4,2346.9,8.52166]
[1727945016076,5.13155,2347.4,2346.9,4.26082]
[1727945016383,9.39166,2347.4,2346.9,4.26082]
[1727945016585,9.39167,2347.4,2346.9,4.26081]
[1727945016913,5.13155,2347.4,2346.9,8.52161]
[1727945017120,9.3917,2347.4,2346.9,4.2608]
[1727945017321,5.13155,2347.4,2346.9,8.52165]
[1727945017596,9.39168,2347.4,2346.9,4.2608]
[1727945018101,5.13155,2347.4,2347.0,4.2607]
[1727945018867,9.39168,2347.4,2347.0,4.2607]
[1727945019408,5.13155,2347.4,2347.0,4.2607]
[1727945019700,9.39173,2347.4,2347.0,4.2607]
[1727945019878,10.330903,2347.4,2347.0,4.2607]
[1727945020076,0.8715,2347.4,2347.0,4.2607]
[1727945020279,0.8336,2347.9,2346.7,0.8418]
[1727945020596,0.8336,2347.3,2346.9,4.2608]
[1727945020766,4.25896,2348.0,2346.7,0.8418]
[1727945020767,0.8336,2347.5,2347.1,4.26056]
[1727945021291,5.53901087,2348.1,2347.4,4.25999]
[1727945021292,5.09299,2347.8,2347.4,4.25999]
[1727945021491,1.768806,2347.8,2347.2,4.26028]
[1727945021732,5.09304,2347.8,2347.4,4.26002]
[1727945021928,0.8336,2347.8,2347.2,4.26026]
[1727945022138,4.25974,2347.6,2347.2,4.26026]
[1727945022446,4.25974,2347.6,2347.0,4.26059]
[1727945022447,4.25994,2347.5,2347.0,4.26059]
[1727945022742,0.8336,2347.8,2346.9,4.26082]
[1727945022922,5.09294,2347.8,2347.4,4.26001]
[1727945023244,5.09291,2347.8,2347.4,4.26001]
[1727945023404,4.25956,2347.7,2347.3,4.26019]
[1727945023606,0.8336,2347.8,2347.4,4.25993]
[1727945023910,0.8336,2347.8,2347.2,0.835]
[1727945024105,0.8617,2348.0,2347.3,0.509555]
[1727945024305,4.25868,2348.2,2347.8,4.25928]
[1727945024614,0.8617,2348.3,2347.5,4.25975]
[1727945024942,0.8617,2348.3,2347.4,4.26001]
[1727945024943,5.12102,2347.8,2347.4,4.26001]
[1727945025304,5.12102,2347.8,2347.3,4.2601]
[1727945025511,5.12108,2347.8,2347.4,4.26]
[1727945026036,0.8617,2347.8,2347.4,4.26]
[1727945026251,5.12081,2348.0,2347.6,4.25953]
[1727945026547,7.39,2348.3,2347.7,0.835]
[1727945026548,8.2517,2348.3,2347.7,0.835]
[1727945026759,4.25865,2348.2,2347.8,4.25914]
[1727945027049,5.94534,2348.3,2347.8,8.51828]
[1727945027217,5.12017,2348.3,2347.9,4.25912]
[1727945027412,5.12017,2348.3,2347.7,0.835]
[1727945027745,4.25858,2348.2,2347.8,4.25928]
[1727945028254,0.8617,2348.3,2347.7,0.835]
[1727945028426,4.25873,2348.2,2347.8,4.2592]
[1727945029213,4.25876,2348.1,2347.7,5.09444]
[1727945029720,4.25876,2348.1,2347.6,4.25962]
[1727945029926,4.25876,2348.1,2347.5,5.13633]
[1727945029927,4.2592,2347.9,2347.3,4.2601]
[1727945030223,4.2592,2347.9,2347.4,4.25999]
[1727945030224,4.25931,2347.8,2347.4,4.25999]
[1727945030823,4.2592,2347.9,2347.5,4.25983]
[1727945032550,5.196784,2348.1,2347.5,4.25983]
[1727945032714,4.25887,2348.1,2347.7,4.25946]
[1727945032909,4.25869,2348.2,2347.7,4.25941]
[1727945033114,4.25869,2348.2,2347.8,4.25919]
[1727945033313,1.67689,2348.2,2347.5,0.425983]
[1727945033557,5.9356,2348.2,2347.3,3.0]
[1727945033756,4.25879,2348.1,2347.6,4.25951]
[1727945034446,4.25879,2348.1,2347.7,4.25946]
[1727945034657,5.9356,2348.2,2347.8,4.25925]
[1727945034862,4.25869,2348.2,2347.7,4.25946]
[1727945035222,4.25885,2348.1,2347.7,4.25946]
[1727945036057,0.8617,2348.3,2347.9,4.259]
[1727945036255,4.25745,2348.9,2347.8,0.9005]
[1727945036256,0.9011,2348.5,2348.2,4.2585]
[1727945036457,5.15873,2348.8,2348.3,4.25829]
[1727945036618,5.15873,2348.8,2348.2,4.2585]
[1727945036619,4.25788,2348.6,2348.2,4.2585]
[1727945037259,5.15866,2348.8,2348.2,4.2585]
[1727945037431,5.15866,2348.8,2348.4,4.25818]
[1727945038257,4.25769,2348.7,2348.3,4.25837]
[1727945038454,0.9011,2348.8,2348.2,4.2585]
[1727945038752,5.15869,2348.8,2348.3,4.25834]
[1727945038962,5.15869,2348.8,2348.4,4.25813]
[1727945039253,16.66616691,2349.3,2348.6,4.25778]
[1727945039254,5.16682,2349.1,2348.6,4.25778]
[1727945039458,5.16682,2349.1,2348.5,5.13896]
[1727945039459,4.25733,2348.9,2348.5,5.13896]
[1727945039672,11.64659,2349.3,2348.5,5.13896]
[1727945039673,7.39,2349.3,2348.5,5.13896]
[1727945039845,4.25667,2349.3,2348.9,4.25722]
[1727945040353,0.9097,2349.4,2348.5,0.8811]
[1727945040569,4.25757,2348.8,2348.4,4.25821]
[1727945040731,4.25757,2348.8,2348.2,0.8513]
[1727945040732,4.258,2348.6,2348.2,0.8513]
[1727945041071,11.64673,2349.3,2347.4,5.52646761]
[1727945041072,4.25867,2348.2,2347.7,4.25947]
[1727945041276,4.25887,2348.1,2347.6,0.8513]
[1727945041443,4.25929,2347.9,2347.4,4.26001]
[1727945041645,4.2592,2347.9,2347.5,4.2598]
[1727945042036,4.25896,2348.0,2347.5,4.2598]
[1727945042231,4.25889,2348.1,2347.6,4.25954]
[1727945042566,4.2584,2348.3,2347.8,0.8795]
[1727945042729,4.2584,2348.3,2347.8,5.13878]
[1727945043667,5.17209,2348.5,2347.9,4.25903]
[1727945043970,0.905,2349.0,2348.6,4.25774]
[1727945044204,4.25696,2349.1,2348.6,4.25774]
[1727945044530,0.905,2349.2,2348.9,4.25731]
[1727945044734,8.51346,2349.3,2348.8,4.25747]
[1727945044963,4.25677,2349.2,2348.8,4.25747]
[1727945045270,8.51344,2349.3,2348.9,4.25721]
[1727945045454,0.939994,2349.3,2348.5,4.25793]
[1727945045773,4.25752,2348.8,2348.3,5.13111]
[1727945045936,4.25769,2348.7,2348.3,5.13111]
[1727945046336,0.8463,2348.9,2348.4,4.25809]
[1727945046538,4.2575,2348.8,2348.4,4.25809]
[1727945046966,4.2575,2348.8,2348.4,8.5162]
[1727945047273,4.2575,2348.8,2348.4,8.51622]
[1727945047565,5.10335,2349.1,2348.6,4.25777]
[1727945047769,5.10335,2349.1,2348.7,4.25753]
[1727945047770,8.5141,2349.1,2348.7,4.25753]
[1727945047984,4.25705,2349.1,2348.7,4.25753]
[1727945048187,0.8463,2349.4,2348.9,4.25722]
[1727945048391,4.25641,2349.4,2349.0,4.25711]
[1727945048563,4.25658,2349.3,2348.9,4.25722]
[1727945048960,4.25641,2349.4,2349.0,4.25701]
[1727945049893,4.25641,2349.4,2348.8,5.17484]
[1727945050188,8.51346,2349.3,2348.8,5.17484]
[1727945050357,4.25679,2349.2,2348.8,5.17484]
[1727945050757,4.25697,2349.1,2348.7,4.25766]
[1727945051073,4.25732,2348.9,2348.5,8.17666]
[1727945051386,4.25702,2349.1,2348.6,4.25776]
[1727945051585,4.25702,2349.1,2348.7,4.25767]
[1727945051798,4.25702,2349.1,2348.6,4.25776]
[1727945051799,4.25713,2349.0,2348.6,4.25776]
[1727945052153,4.25733,2348.9,2348.5,8.994486]
[1727945052354,4.25713,2349.0,2348.6,4.25777]
[1727945052550,4.25703,2349.1,2348.7,4.25756]
[1727945052774,4.25703,2349.1,2348.5,0.9188]
[1727945052998,0.571933,2349.1,2348.2,0.8935]
[1727945053182,4.25829,2348.4,2348.0,5.15233]
[1727945053368,4.25829,2348.4,2347.8,0.8935]
[1727945053369,0.55,2348.4,2347.8,0.8935]
[1727945053554,5.56946691,2348.4,2347.3,0.8935]
[1727945053758,5.01946691,2348.1,2347.3,0.8935]
[1727945053984,3.572035,2348.3,2346.9,4.26093]
[1727945053985,0.9123,2347.7,2346.9,4.26093]
[1727945054184,0.9123,2347.7,2346.6,0.8935]
[1727945054185,0.9123,2347.7,2347.1,4.26053]
[1727945054359,0.9123,2347.7,2347.0,4.686673]
[1727945054360,5.01946691,2348.1,2347.2,4.2603]
[1727945054558,0.9123,2348.0,2347.3,4.68611]
[1727945054760,0.9123,2348.0,2347.3,0.42603]
[1727945055255,0.9123,2348.8,2347.6,0.8935]
[1727945055456,4.25779,2348.7,2347.6,7.25956]
[1727945055660,0.9123,2348.8,2347.8,0.8935]
[1727945055859,5.01946691,2348.6,2347.5,3.0]
[1727945056059,5.01946691,2348.6,2347.2,4.2603]
[1727945056060,5.89586691,2348.3,2347.2,5.142]
[1727945056284,5.01946691,2348.3,2347.2,0.8817]
[1727945056468,4.25968,2347.6,2346.8,0.8817]
[1727945056780,4.25968,2347.6,2346.4,4.26171]
[1727945056781,5.15588,2347.4,2346.4,5.13081]
[1727945056990,0.55,2347.3,2346.4,5.13081]
[1727945057192,10.17534691,2347.4,2346.4,0.8691]
[1727945057193,0.55,2347.0,2346.4,0.8691]
[1727945057376,0.8958,2346.9,2346.1,0.8691]
[1727945057671,4.81126,2346.8,2345.8,5.18253]
[1727945057872,5.15675,2346.9,2345.8,5.18253]
[1727945057873,0.55,2346.6,2345.8,5.18253]
[1727945058297,0.55,2346.8,2346.0,4.26256]
[1727945058564,0.55,2346.8,2345.8,5.18253]
[1727945058565,0.55,2346.8,2346.7,1.33148543]
[1727945058795,1.420675,2346.8,2346.7,1.33148543]
[1727945059108,1.420675,2346.8,2345.9,4.26274]
[1727945059461,0.55,2346.5,2345.8,0.9197]
[1727945059664,0.481153,2346.4,2345.8,0.9197]
[1727945059960,0.55,2346.6,2345.8,0.9197]
[1727945060197,0.55,2346.7,2345.8,5.18261]
[1727945060409,0.8958,2346.9,2345.8,1.437961]
[1727945060700,0.8958,2346.9,2346.3,8.52381]
[1727945060886,0.8958,2346.9,2346.3,4.2619]
[1727945061094,0.8958,2346.9,2346.1,4.26225]
[1727945061298,0.8958,2346.9,2346.2,4.688425]
[1727945061598,0.8958,2346.9,2346.4,4.26182]
[1727945062168,0.8958,2346.9,2346.2,8.950335]
[1727945062505,0.8958,2346.9,2346.5,4.26164]
[1727945062706,4.25991,2347.5,2346.6,4.26145]
[1727945062707,0.8871,2347.3,2346.6,4.26145]
[1727945063004,0.8871,2347.3,2346.5,0.852345]
[1727945063215,0.8871,2347.3,2346.6,4.26134]
[1727945063363,1.701801,2347.3,2346.6,8.52268]
[1727945063707,1.701801,2347.3,2346.6,4.26134]
[1727945063891,0.8871,2347.3,2346.7,4.26129]
[1727945064265,0.8871,2347.3,2346.6,4.26134]
[1727945064471,0.8871,2347.3,2346.7,4.26117]
[1727945064768,0.8871,2347.3,2346.8,5.113251]
[1727945065485,0.8749,2347.6,2346.9,4.26084]
[1727945066198,5.13465,2347.6,2346.9,4.26084]
[1727945066768,4.25988,2347.5,2346.9,4.2609]
[1727945067082,0.8749,2347.6,2347.0,4.26074]
[1727945067406,0.8749,2347.6,2347.0,4.26064]
[1727945067567,5.14862,2347.9,2347.3,4.26018]
[1727945067770,5.14862,2347.9,2347.4,0.426018]
[1727945068069,0.8894,2347.9,2347.3,4.26011]
[1727945068269,0.8894,2347.9,2347.1,4.26044]
[1727945068467,4.25939,2347.8,2347.1,3.0]
[1727945068710,4.25951,2347.7,2347.1,4.94591]
[1727945068881,4.25939,2347.8,2347.2,4.26039]
[1727945069083,4.25939,2347.8,2347.2,5.18102]
[1727945069277,4.25935,2347.8,2347.1,0.68545]
[1727945069513,0.8894,2347.9,2346.9,5.11532]
[1727945069514,4.25969,2347.6,2346.9,5.11532]
[1727945069716,0.8392,2347.5,2346.8,4.26097]
[1727945069886,4.26013,2347.4,2346.8,4.26097]
[1727945070074,4.26021,2347.3,2346.8,4.26097]
[1727945070274,4.26013,2347.4,2346.7,0.8675]
[1727945070275,4.2604,2347.2,2346.7,0.8675]
[1727945070553,4.26017,2347.4,2346.7,0.8675]
[1727945070834,4.770247,2347.3,2346.8,4.26111]
[1727945071808,4.26042,2347.2,2346.7,8.12875]
[1727945073434,4.26005,2347.4,2346.8,4.26096]
[1727945073636,4.26005,2347.4,2346.9,4.26084]
[1727945074339,9.35916,2347.5,2347.0,4.26068]
[1727945074538,0.8392,2347.5,2347.0,4.26068]
[1727945074694,5.16999,2347.7,2347.2,4.26038]
[1727945074897,5.16999,2347.7,2347.2,8.52067]
[1727945075220,4.26029,2347.3,2346.8,8.52202]
[1727945075421,4.26029,2347.3,2346.8,8.52204]
[1727945075639,4.25999,2347.5,2346.9,4.26093]
[1727945076133,4.26021,2347.3,2346.9,4.26093]
[1727945076439,0.9145,2347.4,2346.9,4.26085]
[1727945076621,0.9145,2347.4,2347.0,4.26061]
[1727945076812,0.9145,2347.4,2346.9,4.26085]
[1727945076813,4.26004,2347.4,2346.9,4.26085]
[1727945077144,4.26025,2347.3,2346.8,5.14169]
[1727945077438,4.25997,2347.5,2346.9,4.26084]
[1727945077439,4.26004,2347.4,2346.9,4.26084]
[1727945077641,0.8588,2347.6,2346.8,0.8806]
[1727945077793,7.39,2348.0,2347.4,4.25997]
[1727945077794,5.16844,2347.9,2347.4,4.25997]
[1727945078004,0.9092,2347.9,2347.6,4.25965]
[1727945078203,4.25891,2348.1,2347.7,4.25948]
[1727945078706,4.25891,2348.1,2347.5,4.25977]
[1727945078707,4.25904,2348.0,2347.5,8.51952]
[1727945078922,4.25904,2348.0,2347.6,4.25965]